bitfinex/quotes_BTCUSD_20251113
["timestamp","ask_amount","ask_price","bid_price","bid_amount"]
[1763065976780,0.09816915,98625.0,98610.0,0.149]
[1763065976982,0.09816915,98625.0,98611.0,0.323]
[1763065977183,0.04955,98624.0,98611.0,0.323]
[1763065977526,0.04955,98624.0,98611.0,0.52581608]
[1763065977855,0.04955,98624.0,98611.0,0.323]
[1763065978245,0.09805842,98623.0,98611.0,0.323]
[1763065978447,0.09805842,98623.0,98611.0,0.32546365]
[1763065978654,0.04955,98624.0,98611.0,0.32546365]
[1763065978855,0.09408,98634.0,98611.0,0.32546365]
[1763065978856,0.09816915,98623.0,98611.0,0.32546365]
[1763065979057,0.09816915,98623.0,98611.0,0.32446365]
[1763065979602,0.04577734,98634.0,98611.0,0.32646365]
[1763065979811,0.09816915,98625.0,98611.0,0.32646365]
[1763065979978,0.09816915,98640.0,98614.0,0.20281022]
[1763065980182,0.09816915,98640.0,98613.0,0.20281293]
[1763065980382,0.05347,98612.0,98611.0,0.00346365]
[1763065980564,0.05347,98612.0,98611.0,0.00246365]
[1763065980768,0.06937709,98612.0,98611.0,0.00046365]
[1763065980964,0.06937709,98612.0,98611.0,0.00146365]
[1763065981188,0.06937709,98612.0,98611.0,0.00346365]
[1763065981398,0.06937709,98612.0,98611.0,0.00046365]
[1763065981768,0.06937709,98612.0,98611.0,0.00146365]
[1763065982252,0.06937709,98612.0,98611.0,0.00046365]
[1763065982477,0.05347,98612.0,98611.0,0.00146365]
[1763065982627,0.03347,98612.0,98611.0,0.00046365]
[1763065984235,0.02396,98612.0,98611.0,0.00046365]
[1763065984438,0.09816915,98625.0,98611.0,0.00046365]
[1763065984642,0.09816915,98640.0,98620.0,0.04377]
[1763065984816,0.04356,98638.0,98620.0,0.04377]
[1763065985111,0.09816915,98640.0,98621.0,0.09518]
[1763065985518,0.09816915,98640.0,98620.0,0.04377]
[1763065985725,0.09816915,98625.0,98611.0,0.32346365]
[1763065985936,0.09816915,98640.0,98611.0,0.32346365]
[1763065985937,0.09816915,98640.0,98620.0,0.002]
[1763065986305,0.09816915,98640.0,98620.0,0.09516]
[1763065986508,0.09816915,98640.0,98620.0,0.69952521]
[1763065986714,0.09816915,98636.0,98620.0,0.69952521]
[1763065986935,0.09816915,98636.0,98620.0,0.09516]
[1763065987281,0.09816915,98651.0,98620.0,0.09316]
[1763065987415,0.09816915,98651.0,98621.0,0.324]
[1763065987612,0.09816915,98651.0,98624.0,0.20278895]
[1763065987816,0.01338292,98659.0,98630.0,0.60436521]
[1763065987817,0.09816915,98650.0,98630.0,0.60436521]
[1763065988042,0.09816915,98650.0,98622.0,0.09316]
[1763065988246,0.09816915,98649.0,98626.0,0.20278628]
[1763065988481,0.09816915,98649.0,98621.0,0.323]
[1763065988482,0.09816915,98634.0,98621.0,0.323]
[1763065988596,0.00441,98647.0,98621.0,0.323]
[1763065988826,0.001,98651.0,98622.0,0.09316]
[1763065988827,0.09816915,98646.0,98622.0,0.09316]
[1763065989025,0.09816915,98646.0,98621.0,0.323]
[1763065989232,0.04317,98622.0,98611.0,0.00046365]
[1763065989435,0.04317,98622.0,98611.0,0.32346365]
[1763065989635,0.04317,98630.0,98611.0,0.32346365]
[1763065990299,0.04304389,98630.0,98612.0,0.09316]
[1763065990512,0.09816915,98646.0,98629.0,0.04732]
[1763065990717,0.09816915,98646.0,98629.0,0.11144]
[1763065991045,0.70253436,98670.0,98629.0,0.11144]
[1763065991046,0.09816915,98665.0,98645.0,0.06412]
[1763065991289,0.00998,98679.0,98658.0,0.11144]
[1763065991290,0.00951,98679.0,98658.0,0.11144]
[1763065991486,0.04728,98714.0,98664.0,0.06412]
[1763065991487,0.09816915,98676.0,98664.0,0.06412]
[1763065991692,0.09816915,98676.0,98646.0,0.323]
[1763065991846,0.0001,98675.0,98650.0,0.04732]
[1763065992050,0.09816915,98676.0,98650.0,0.04732]
[1763065992249,0.0001387,98676.0,98675.0,0.04732]
[1763065993262,0.0001387,98676.0,98666.0,0.04732]
[1763065993576,0.0001387,98676.0,98664.0,0.001]
[1763065993980,0.0001387,98676.0,98658.0,0.04732]
[1763065994330,0.0001387,98676.0,98675.0,0.001]
[1763065994520,0.0001387,98676.0,98666.0,0.001]
[1763065994889,0.09816915,98675.0,98664.0,0.001]
[1763065995105,0.09816915,98675.0,98658.0,0.04732]
[1763065995299,0.09816915,98675.0,98658.0,0.04832]
[1763065995505,0.00989,98659.0,98658.0,0.001]
[1763065995907,0.09816915,98675.0,98658.0,0.001]
[1763065996107,0.09816915,98660.0,98658.0,0.001]
[1763065996460,0.09816915,98675.0,98648.0,0.04732]
[1763065996792,0.09816915,98675.0,98664.0,0.001]
[1763065996996,0.0002,98674.0,98664.0,0.001]
[1763065997192,0.0002,98674.0,98648.0,0.04732]
[1763065997627,0.0002,98674.0,98673.0,0.0010165]
[1763065998238,0.36661874,98674.0,98625.0,0.1457]
[1763065998515,0.09816915,98655.0,98625.0,0.52578679]
[1763065998773,0.09816915,98655.0,98627.0,0.09316]
[1763065999371,0.00529968,98654.0,98627.0,0.09316]
[1763065999567,0.00529968,98654.0,98627.0,0.41616]
[1763066000289,0.00529968,98654.0,98630.0,0.48186653]
[1763066000643,0.00529968,98654.0,98640.0,0.48186653]
[1763066000845,0.00529968,98654.0,98632.0,0.20277296]
[1763066001046,0.00529968,98654.0,98631.0,0.41616]
[1763066001047,0.00529968,98654.0,98653.0,0.04732]
[1763066001332,0.48186653,98680.0,98653.0,0.11144]
[1763066001502,0.00529897,98668.0,98653.0,0.04732]
[1763066001713,0.00529897,98668.0,98640.0,0.48186653]
[1763066001848,0.04681,98641.0,98631.0,0.1457]
[1763066002059,0.58003568,98660.0,98630.0,0.001]
[1763066002262,0.09816915,98659.0,98631.0,0.09316]
[1763066003112,0.0983078,98659.0,98653.0,0.001]
[1763066003565,0.0983078,98659.0,98649.0,0.04732]
[1763066004111,0.0983078,98659.0,98643.0,0.04732]
[1763066004311,0.0983078,98659.0,98658.0,0.0003911]
[1763066004741,0.00013865,98659.0,98658.0,0.0003911]
[1763066006121,0.00013865,98659.0,98658.0,0.0013911]
[1763066006576,0.00013865,98659.0,98658.0,0.0023911]
[1763066006818,0.00013865,98659.0,98658.0,0.0013911]
[1763066007151,0.00013865,98659.0,98658.0,0.0023911]
[1763066008226,0.00079865,98659.0,98658.0,0.0023911]
[1763066009317,0.00079865,98659.0,98658.0,0.0013911]
[1763066009518,0.00079865,98659.0,98658.0,0.0003911]
[1763066010165,0.4296776,98659.0,98658.0,0.0003911]
[1763066010358,0.01013684,98650.0,98610.0,0.149]
[1763066010559,0.09816915,98626.0,98610.0,0.149]
[1763066010924,0.02318,98627.0,98611.0,0.323]
[1763066011546,0.09816915,98626.0,98611.0,0.323]
[1763066011702,0.09816915,98626.0,98611.0,0.00046365]
[1763066012089,0.00112,98625.0,98611.0,0.00046365]
[1763066012292,0.48186653,98621.0,98611.0,0.00046365]
[1763066012489,0.00112,98612.0,98611.0,0.00046365]
[1763066012800,0.48186653,98621.0,98611.0,0.00046365]
[1763066012997,0.00112,98612.0,98611.0,0.00046365]
[1763066013251,0.09816915,98626.0,98611.0,0.00046365]
[1763066013252,0.09928915,98626.0,98611.0,0.00046365]
[1763066013453,0.00112,98625.0,98611.0,0.00046365]
[1763066013783,0.48186653,98621.0,98611.0,0.00046365]
[1763066014188,0.00112,98612.0,98611.0,0.00046365]
[1763066016143,0.09816915,98626.0,98611.0,0.00046365]
[1763066016144,0.42116915,98626.0,98611.0,0.00046365]
[1763066016553,0.09816915,98626.0,98625.0,0.00086077]
[1763066017594,0.09916915,98626.0,98625.0,0.00086077]
[1763066017754,0.09816915,98626.0,98625.0,0.00086077]
[1763066018159,0.09916915,98626.0,98625.0,0.00086077]
[1763066019240,0.48186653,98640.0,98625.0,0.00086077]
[1763066019456,0.09816915,98626.0,98621.0,0.04423]
[1763066019668,0.48186653,98650.0,98625.0,0.001]
[1763066019884,0.48186653,98660.0,98625.0,0.001]
[1763066020123,0.48186653,98660.0,98625.0,0.09255]
[1763066020350,0.21013479,98670.0,98625.0,0.001]
[1763066020351,0.68186653,98650.0,98625.0,0.001]
[1763066020564,0.09816915,98626.0,98625.0,0.001]
[1763066020817,0.09816915,98626.0,98611.0,0.32346365]
[1763066021265,0.09816915,98626.0,98611.0,0.00046365]
[1763066021906,0.01590736,98624.0,98611.0,0.00046365]
[1763066022370,0.01590736,98624.0,98611.0,0.00146365]
[1763066023037,0.01590736,98624.0,98611.0,0.00046365]
[1763066023256,0.01590736,98624.0,98611.0,0.00146365]
[1763066023480,0.01590736,98624.0,98623.0,0.04423]
[1763066023927,0.09816915,98626.0,98623.0,0.04423]
[1763066024191,0.09816915,98641.0,98623.0,0.04423]
[1763066024192,0.09816915,98625.0,98623.0,0.04423]
[1763066025076,0.2,98620.0,98611.0,0.00346365]
[1763066025277,0.48186653,98621.0,98611.0,0.00246365]
[1763066025687,0.2,98620.0,98611.0,0.00046365]
[1763066025891,0.20281507,98612.0,98611.0,0.00046365]
[1763066026096,0.2,98620.0,98611.0,0.00046365]
[1763066026250,0.201,98620.0,98611.0,0.00046365]
[1763066026461,0.20281446,98613.0,98611.0,0.00046365]
[1763066026837,0.20281712,98611.0,98610.0,3.65e-06]
[1763066027119,0.20281712,98611.0,98600.0,0.00028735]
[1763066027120,0.24625643,98601.0,98600.0,0.00028735]
[1763066027331,0.24639506,98601.0,98600.0,0.00028735]
[1763066027538,0.04355737,98601.0,98600.0,0.00028735]
[1763066027739,0.36655737,98601.0,98600.0,0.00028735]
[1763066027882,0.20285778,98592.0,98590.0,0.0004]
[1763066028083,0.20287624,98583.0,98550.0,0.0004]
[1763066028289,0.21014301,98590.0,98550.0,0.0004]
[1763066028290,0.68186653,98570.0,98550.0,0.0004]
[1763066028531,0.03232,98551.0,98550.0,0.0004]
[1763066029458,0.032,98552.0,98550.0,0.00153923]
[1763066029636,0.09816915,98559.0,98550.0,0.00153923]
[1763066029637,0.12985915,98559.0,98550.0,0.00053923]
[1763066029859,0.09816915,98585.0,98559.0,0.05976]
[1763066030067,0.1251253,98625.0,98559.0,0.05976]
[1763066030068,0.03232,98594.0,98578.0,0.04423]
[1763066030276,0.00065,98579.0,98555.0,0.04423]
[1763066030511,0.00065,98579.0,98562.0,0.04423]
[1763066030711,0.09816915,98570.0,98555.0,0.04423]
[1763066031685,0.00595429,98569.0,98550.0,0.00253923]
[1763066031905,0.09816915,98551.0,98550.0,0.00053923]
[1763066032346,0.09881915,98551.0,98550.0,0.00053923]
[1763066032742,0.09881915,98551.0,98550.0,0.00153923]
[1763066033148,0.09881915,98551.0,98550.0,0.00053923]
[1763066033557,0.09816915,98551.0,98550.0,0.00253923]
[1763066033757,0.11452915,98551.0,98550.0,0.00253923]
[1763066034184,0.11452915,98551.0,98550.0,0.00553923]
[1763066035557,0.09816915,98551.0,98550.0,0.00553923]
[1763066036097,0.14060915,98551.0,98550.0,0.00659406]
[1763066037781,0.09816915,98551.0,98550.0,0.00659406]
[1763066039000,0.11677915,98551.0,98550.0,0.00659406]
[1763066039828,0.01861,98551.0,98550.0,0.00659406]
[1763066040852,0.01882,98551.0,98550.0,0.00659406]
[1763066042600,0.11698915,98551.0,98550.0,0.00659406]
[1763066042803,0.11698915,98551.0,98530.0,0.0004]
[1763066042804,0.09816915,98531.0,98530.0,0.0004]
[1763066042931,0.09830766,98531.0,98530.0,0.0004]
[1763066043159,0.00013851,98531.0,98530.0,0.0004]
[1763066044085,0.00013851,98531.0,98530.0,0.0014]
[1763066044298,0.04031851,98531.0,98530.0,0.0014]
[1763066044480,0.24330031,98531.0,98530.0,0.0014]
[1763066044681,0.04031851,98531.0,98530.0,0.0024]
[1763066046314,0.00013851,98531.0,98530.0,0.0024]
[1763066049668,0.02523851,98531.0,98530.0,0.0024]
[1763066051782,0.00013851,98531.0,98530.0,0.0024]
[1763066053363,0.02523851,98531.0,98530.0,0.0024]
[1763066053995,0.00013851,98531.0,98530.0,0.0024]
[1763066059281,0.00013851,98531.0,98530.0,0.59159773]
[1763066059477,0.00013851,98531.0,98530.0,0.59059773]
[1763066059677,0.00013851,98531.0,98530.0,0.59259773]
[1763066059865,0.00013851,98531.0,98530.0,0.38861387]
[1763066060065,0.00013851,98531.0,98530.0,0.39061387]
[1763066060363,0.00013851,98531.0,98530.0,0.38861387]
[1763066060779,0.00013851,98531.0,98530.0,0.39361387]
[1763066060780,0.00113851,98531.0,98530.0,0.39361387]
[1763066060994,0.00013851,98531.0,98530.0,0.38661387]
[1763066061321,0.00113851,98531.0,98530.0,0.39161387]
[1763066061496,0.00113851,98531.0,98530.0,0.39461387]
[1763066061698,0.00113851,98531.0,98530.0,0.39161387]
[1763066061990,0.00013851,98531.0,98530.0,0.38661387]
[1763066062182,0.00113851,98531.0,98530.0,0.39161387]
[1763066062736,0.00013851,98531.0,98530.0,0.38661387]
[1763066063009,0.00013851,98531.0,98530.0,0.39461387]
[1763066063366,0.00013851,98531.0,98530.0,0.39061387]
[1763066063601,0.03803,98579.0,98531.0,0.323]
[1763066063807,0.09816915,98559.0,98540.0,0.323]
[1763066063931,0.09816915,98564.0,98540.0,0.323]
[1763066064771,0.09316915,98564.0,98540.0,0.323]
[1763066064978,0.09316915,98564.0,98539.0,0.36668]
[1763066065184,0.03803,98563.0,98539.0,0.36668]
[1763066065386,0.09816915,98549.0,98540.0,0.001]
[1763066065828,0.01012,98541.0,98530.0,0.0004]
[1763066066049,0.09816915,98549.0,98531.0,0.09192]
[1763066066201,0.09816915,98549.0,98540.0,0.04468]
[1763066066523,0.09316915,98564.0,98540.0,0.04368]
[1763066066524,0.01012,98555.0,98540.0,0.04368]
[1763066066746,0.01025912,98555.0,98540.0,0.04368]
[1763066066951,0.00013912,98555.0,98554.0,0.04368]
[1763066067088,0.00013912,98555.0,98542.0,0.323]
[1763066068032,0.00013912,98555.0,98540.0,0.001]
[1763066068033,0.09816915,98549.0,98540.0,0.001]
[1763066068396,0.09816915,98549.0,98542.0,0.001]
[1763066068797,0.09816915,98549.0,98540.0,0.001]
[1763066069437,0.09816915,98549.0,98542.0,0.001]
[1763066069805,0.09816915,98549.0,98540.0,0.001]
[1763066070006,0.09816915,98549.0,98540.0,0.002]
[1763066070506,0.00013912,98555.0,98548.0,0.05545]
[1763066070825,0.00013912,98555.0,98549.0,0.08737]
[1763066071017,0.00013912,98555.0,98542.0,0.001]
[1763066071241,0.00013912,98555.0,98542.0,0.08737]
[1763066071487,0.00013912,98555.0,98554.0,0.05545]
[1763066071815,0.00013912,98555.0,98543.0,0.323]
[1763066072260,0.09816915,98554.0,98543.0,0.323]
[1763066072471,0.09816915,98554.0,98542.0,0.002]
[1763066072876,0.09816915,98554.0,98543.0,0.002]
[1763066073077,0.00013912,98555.0,98543.0,0.002]
[1763066073283,0.00013912,98555.0,98542.0,0.002]
[1763066073492,0.00013912,98555.0,98554.0,0.05545]
[1763066074046,0.00013912,98555.0,98545.0,0.323]
[1763066074982,0.09816915,98554.0,98545.0,0.323]
[1763066075364,0.09816915,98554.0,98545.0,0.001]
[1763066075986,0.00013912,98555.0,98545.0,0.001]
[1763066076183,0.00013912,98555.0,98545.0,0.002]
[1763066076420,0.00013912,98555.0,98554.0,0.05545]
[1763066076974,0.00013912,98555.0,98546.0,0.08737]
[1763066077147,0.00013912,98555.0,98554.0,0.05545]
[1763066077510,0.00013912,98555.0,98551.0,0.323]
[1763066077729,0.00013912,98555.0,98554.0,0.05645]
[1763066077931,0.00013912,98555.0,98554.0,0.324]
[1763066078138,0.00013912,98555.0,98554.0,0.323]
[1763066078337,0.01591886,98605.0,98570.0,0.01014507]
[1763066078524,0.00013912,98605.0,98587.0,0.0436]
[1763066079123,0.00013912,98605.0,98604.0,0.09905]
[1763066079511,0.00013912,98605.0,98591.0,0.323]
[1763066080299,0.09816915,98604.0,98587.0,0.0446]
[1763066080663,0.00013912,98605.0,98603.0,0.05545]
[1763066080912,0.00013912,98605.0,98595.0,0.08737]
[1763066082260,0.00013912,98605.0,98595.0,0.08837]
[1763066082389,0.00013912,98605.0,98595.0,0.001]
[1763066082593,0.00013912,98605.0,98604.0,0.0436]
[1763066083710,0.02922912,98605.0,98595.0,0.001]
[1763066083856,0.09816915,98598.0,98595.0,0.001]
[1763066084259,0.09816915,98598.0,98583.0,0.0436]
[1763066084575,0.00013912,98605.0,98604.0,0.001]
[1763066084961,0.00013912,98605.0,98584.0,0.08737]
[1763066085161,0.00013912,98605.0,98602.0,0.0436]
[1763066085531,0.00013912,98605.0,98592.0,0.08737]
[1763066085744,0.09816915,98603.0,98583.0,0.0436]
[1763066086149,0.09816915,98603.0,98583.0,0.0446]
[1763066086394,0.03601,98602.0,98583.0,0.001]
[1763066086787,0.03601,98602.0,98573.0,0.0436]
[1763066086990,0.2,98600.0,98573.0,0.0436]
[1763066087192,0.03601,98602.0,98573.0,0.0436]
[1763066087541,0.09816915,98603.0,98574.0,0.41037]
[1763066087746,0.002,98602.0,98580.0,0.60737247]
[1763066087973,0.002,98602.0,98575.0,0.08737]
[1763066088417,0.002,98602.0,98575.0,0.29026062]
[1763066088606,0.004,98602.0,98575.0,0.08737]
[1763066088818,0.002,98602.0,98576.0,0.08737]
[1763066089019,0.09816915,98600.0,98578.0,0.20288466]
[1763066089221,0.09816915,98600.0,98579.0,0.08737]
[1763066089630,0.001,98603.0,98580.0,0.20288029]
[1763066089830,0.09816915,98599.0,98579.0,0.41037]
[1763066090006,0.03048407,98612.0,98582.0,0.323]
[1763066090207,0.60737247,98630.0,98598.0,0.0436]
[1763066090208,0.09816915,98610.0,98598.0,0.0436]
[1763066091250,0.09916915,98610.0,98598.0,0.0436]
[1763066091457,0.09916915,98610.0,98592.0,0.0436]
[1763066091830,0.09916915,98610.0,98609.0,0.0436]
[1763066091831,0.0169126,98610.0,98609.0,0.0436]
[1763066092036,0.001,98610.0,98609.0,0.0436]
[1763066092610,0.001,98610.0,98603.0,0.0436]
[1763066092817,0.09816915,98607.0,98603.0,0.0436]
[1763066093146,0.001,98610.0,98603.0,0.0436]
[1763066093326,0.09816915,98607.0,98603.0,0.0436]
[1763066093734,0.60737247,98630.0,98603.0,0.0436]
[1763066093942,0.09816915,98608.0,98603.0,0.0436]
[1763066094297,0.20275718,98641.0,98603.0,0.0436]
[1763066094298,0.323,98637.0,98604.0,0.08737]
[1763066094577,0.09816915,98621.0,98612.0,0.05445]
[1763066094914,0.09816915,98621.0,98604.0,0.08737]
[1763066095491,0.002,98622.0,98604.0,0.08737]
[1763066095841,0.01591159,98625.0,98604.0,0.41037]
[1763066096069,0.01591159,98625.0,98605.0,0.323]
[1763066096468,0.09816915,98623.0,98605.0,0.323]
[1763066096887,0.01591159,98625.0,98605.0,0.323]
[1763066097084,0.09816915,98623.0,98603.0,0.0436]
[1763066097450,0.01591159,98625.0,98603.0,0.0436]
[1763066097582,0.09816915,98623.0,98604.0,0.08737]
[1763066099240,0.09816915,98622.0,98603.0,0.0436]
[1763066099479,0.09816915,98622.0,98604.0,0.323]
[1763066099726,0.09816915,98622.0,98604.0,0.41037]
[1763066099928,0.09816915,98621.0,98604.0,0.41037]
[1763066100134,0.01591159,98625.0,98605.0,0.40569]
[1763066100426,0.09816915,98620.0,98605.0,0.323]
[1763066100650,0.09816915,98620.0,98604.0,0.04275]
[1763066101388,0.00046356,98620.0,98604.0,0.04275]
[1763066101389,0.00046356,98620.0,98619.0,0.38014]
[1763066101395,0.0002,98650.0,98619.0,0.38014]
[1763066101622,0.00033901,98650.0,98628.0,0.05714]
[1763066101862,0.00033901,98650.0,98621.0,0.323]
[1763066102146,0.70554162,98640.0,98607.0,0.08269]
[1763066102415,0.09816915,98625.0,98607.0,0.08269]
[1763066102659,0.09816915,98625.0,98604.0,0.04475]
[1763066102920,0.09816915,98625.0,98604.0,0.04275]
[1763066103431,0.09816915,98610.0,98588.0,0.323]
[1763066103433,0.09816915,98625.0,98605.0,0.04275]
[1763066103715,0.09816915,98640.0,98624.0,0.05714]
[1763066103994,0.09816915,98640.0,98605.0,0.12544]
[1763066103995,0.09816915,98640.0,98639.0,0.05714]
[1763066104227,0.09816915,98640.0,98630.0,0.20277622]
[1763066104228,0.0012,98650.0,98644.0,0.20274831]
[1763066104432,0.0012,98650.0,98640.0,0.08269]
[1763066104433,0.03046511,98669.0,98649.0,0.05714]
[1763066104642,4.634e-05,98655.0,98650.0,0.08269]
[1763066105063,4.634e-05,98655.0,98649.0,0.323]
[1763066105274,0.09816915,98654.0,98648.0,0.04275]
[1763066105700,4.634e-05,98655.0,98648.0,0.04275]
[1763066105905,4.634e-05,98655.0,98650.0,0.003]
[1763066107285,4.634e-05,98655.0,98648.0,0.04275]
[1763066107503,4.634e-05,98655.0,98650.0,0.001]
[1763066108139,4.634e-05,98655.0,98651.0,0.08324]
[1763066108564,4.634e-05,98655.0,98654.0,0.52572872]
[1763066108944,4.634e-05,98655.0,98654.0,0.323]
[1763066109331,4.634e-05,98655.0,98654.0,0.56914746]
[1763066109730,4.634e-05,98655.0,98654.0,0.36641874]
[1763066109932,4.634e-05,98655.0,98654.0,0.56914746]
[1763066110342,4.634e-05,98655.0,98654.0,0.36941874]
[1763066110602,4.634e-05,98655.0,98654.0,0.326]
[1763066110809,4.634e-05,98655.0,98654.0,0.323]
[1763066111018,4.634e-05,98655.0,98654.0,0.33]
[1763066111225,4.634e-05,98655.0,98654.0,0.007]
[1763066111448,4.634e-05,98655.0,98648.0,0.36575]
[1763066111862,4.634e-05,98655.0,98649.0,0.40624]
[1763066112073,4.634e-05,98655.0,98649.0,0.08324]
[1763066112286,4.634e-05,98655.0,98654.0,0.002]
[1763066112876,4.634e-05,98655.0,98654.0,0.37041874]
[1763066113085,4.634e-05,98655.0,98654.0,0.36641874]
[1763066113429,4.634e-05,98655.0,98654.0,0.36841874]
[1763066113630,4.634e-05,98655.0,98654.0,0.36641874]
[1763066114052,4.634e-05,98655.0,98654.0,0.36941874]
[1763066114456,0.0002,98670.0,98669.0,0.56911664]
[1763066114662,0.0002,98690.0,98669.0,0.42429874]
[1763066115009,0.00033898,98690.0,98689.0,0.05788]
[1763066115212,0.00033898,98690.0,98681.0,0.323]
[1763066115364,0.00033898,98690.0,98689.0,0.04034]
[1763066115706,0.00033898,98690.0,98689.0,0.09822]
[1763066116180,0.00033898,98690.0,98689.0,0.10022]
[1763066116703,0.00033898,98690.0,98689.0,0.002]
[1763066117124,0.00033898,98690.0,98689.0,0.004]
[1763066117419,0.00033898,98690.0,98671.0,0.40624]
[1763066117616,0.00033898,98690.0,98689.0,0.001]
[1763066117834,0.00033898,98690.0,98689.0,0.002]
[1763066118268,0.00033898,98690.0,98689.0,0.001]
[1763066118478,0.00033898,98690.0,98689.0,0.002]
[1763066119530,0.00033898,98690.0,98689.0,0.001]
[1763066119751,0.00033898,98690.0,98689.0,0.002]
[1763066120157,0.00033898,98690.0,98689.0,0.001]
[1763066120362,0.00033898,98690.0,98689.0,0.002]
[1763066120784,0.00033898,98690.0,98689.0,0.325]
[1763066121006,0.00033898,98690.0,98689.0,0.36841874]
[1763066121487,0.00033898,98690.0,98689.0,0.36741874]
[1763066121685,0.00033898,98690.0,98689.0,0.04641874]
[1763066122107,0.00033898,98690.0,98689.0,0.24807557]
[1763066122335,0.00033898,98690.0,98689.0,0.24607557]
[1763066122539,0.00033898,98690.0,98689.0,0.24807557]
[1763066122755,0.00033898,98690.0,98689.0,0.24607557]
[1763066123157,0.00033898,98690.0,98689.0,0.25007557]
[1763066123372,0.00033898,98690.0,98689.0,0.24607557]
[1763066123618,0.00033898,98690.0,98689.0,0.25007557]
[1763066123826,0.00033898,98690.0,98689.0,0.25407557]
[1763066124072,0.00033898,98690.0,98689.0,0.24607557]
[1763066124284,0.00033898,98690.0,98689.0,0.25007557]
[1763066124721,0.00033898,98690.0,98689.0,0.04741874]
[1763066125057,0.00033898,98690.0,98689.0,0.57307557]
[1763066125240,0.00033898,98690.0,98689.0,0.57707557]
[1763066125446,0.00033898,98690.0,98689.0,0.37441874]
[1763066126179,0.00033898,98690.0,98689.0,0.331]
[1763066126808,0.2002,98760.0,98729.0,0.05788]
[1763066126963,0.2002,98760.0,98718.0,0.04034]
[1763066126964,0.00046345,98759.0,98758.0,0.09822]
[1763066127780,0.00046345,98759.0,98758.0,0.56585523]
[1763066127978,0.0002,98790.0,98762.0,0.04341874]
[1763066128184,0.0002,98790.0,98788.0,0.20245234]
[1763066128384,0.68184744,98840.0,98801.0,0.323]
[1763066128666,0.2002,98840.0,98801.0,0.32313899]
[1763066128823,0.2024189,98805.0,98801.0,0.00013899]
[1763066129022,0.2024189,98805.0,98755.0,0.09816915]
[1763066129023,0.2,98800.0,98762.0,0.002]
[1763066129225,0.48164744,98790.0,98770.0,0.09816915]
[1763066129491,0.68164744,98780.0,98758.0,0.001]
[1763066129607,0.68164744,98780.0,98739.0,0.08324]
[1763066129608,0.48164744,98780.0,98739.0,0.08324]
[1763066129809,0.48164744,98780.0,98740.0,0.48164744]
[1763066130075,0.48164744,98780.0,98762.0,0.002]
[1763066130299,0.09816915,98788.0,98762.0,0.002]
[1763066130495,0.09816915,98773.0,98741.0,0.40801]
[1763066130873,0.09548364,98773.0,98741.0,0.08501]
[1763066131131,0.09548364,98773.0,98743.0,0.202546]
[1763066131309,0.09816915,98788.0,98760.0,0.48164744]
[1763066131541,0.10116915,98788.0,98772.0,0.03993]
[1763066131799,0.10116915,98788.0,98787.0,0.03993]
[1763066131945,0.003,98788.0,98787.0,0.03993]
[1763066132352,0.00479612,98788.0,98787.0,0.03993]
[1763066132533,0.00679612,98788.0,98774.0,0.323]
[1763066132733,0.002,98788.0,98774.0,0.323]
[1763066132948,0.00145791,98775.0,98773.0,0.40801]
[1763066133148,0.48178628,98800.0,98773.0,0.323]
[1763066133342,0.09816915,98786.0,98759.0,0.323]
[1763066133832,0.09816915,98771.0,98740.0,0.01580036]
[1763066134035,0.09816915,98771.0,98741.0,0.323]
[1763066134248,0.09816915,98755.0,98719.0,0.08501]
[1763066134451,0.20253589,98748.0,98710.0,0.01779272]
[1763066134667,0.20254874,98742.0,98711.0,0.323]
[1763066134876,0.20259558,98719.0,98689.0,0.03993]
[1763066135088,0.2,98740.0,98689.0,0.03993]
[1763066135295,0.323,98749.0,98700.0,0.48164744]
[1763066135509,0.00013871,98740.0,98701.0,0.323]
[1763066135723,0.00013871,98740.0,98720.0,0.48164744]
[1763066135922,0.09816915,98737.0,98721.0,0.323]
[1763066136122,0.09816915,98737.0,98721.0,0.36293]
[1763066136334,0.00013871,98740.0,98722.0,0.08501]
[1763066136766,0.00013871,98740.0,98730.0,0.48164744]
[1763066136972,0.09816915,98782.0,98750.0,0.00952658]
[1763066137179,0.09830802,98782.0,98771.0,0.323]
[1763066137389,0.00013887,98782.0,98771.0,0.323]
[1763066137602,0.00013887,98782.0,98772.0,0.08501]
[1763066138420,0.00143189,98774.0,98761.0,0.323]
[1763066138626,0.00013887,98782.0,98762.0,0.04341874]
[1763066139780,0.00113887,98782.0,98762.0,0.04341874]
[1763066140205,0.09816915,98781.0,98762.0,0.04341874]
[1763066140422,0.00113887,98782.0,98771.0,0.323]
[1763066141011,0.00013887,98782.0,98771.0,0.323]
[1763066141223,0.00013887,98782.0,98772.0,0.08501]
[1763066142667,0.00013887,98782.0,98781.0,0.03993]
[1763066144101,0.00013887,98782.0,98781.0,0.04093]
[1763066144509,0.0017789,98782.0,98781.0,0.001]
[1763066145307,0.0017789,98782.0,98777.0,0.323]
[1763066145620,0.00013887,98782.0,98781.0,0.002]
[1763066145820,0.00013887,98782.0,98781.0,0.001]
[1763066146129,0.00013887,98782.0,98781.0,0.324]
[1763066146534,0.00013887,98782.0,98781.0,0.36641874]
[1763066146806,0.00013887,98782.0,98781.0,0.36741874]
[1763066147135,0.00013887,98782.0,98781.0,0.04341874]
[1763066147730,0.00013887,98782.0,98781.0,0.04441874]
[1763066147981,0.00013887,98782.0,98781.0,0.04341874]
[1763066148172,0.00013887,98782.0,98781.0,0.12842874]
[1763066148374,0.00013887,98782.0,98781.0,0.13042874]
[1763066148574,0.00013887,98782.0,98781.0,0.04541874]
[1763066149360,0.00013887,98782.0,98781.0,0.24788682]
[1763066149638,0.00013887,98782.0,98781.0,0.04641874]
[1763066149828,0.03041684,98828.0,98796.0,0.36641874]
[1763066149957,0.00013884,98828.0,98801.0,0.20242539]
[1763066150172,0.00013884,98828.0,98827.0,0.03993]
[1763066150926,0.00013884,98828.0,98817.0,0.03993]
[1763066151362,0.00257626,98818.0,98817.0,0.03993]
[1763066152169,0.00257626,98818.0,98817.0,0.36293]
[1763066152507,0.00257626,98818.0,98817.0,0.36393]
[1763066152932,0.00257626,98818.0,98817.0,0.36293]
[1763066153153,0.00257626,98818.0,98817.0,0.03993]
[1763066153355,0.00257626,98818.0,98817.0,0.12594]